bitfinex/quotes_SOLUSD_20250531
["timestamp","ask_amount","ask_price","bid_price","bid_amount"]
[1748653222039,40.36,155.82,155.78,34.69347099]
[1748653222259,40.36,155.83,155.79,34.69347099]
[1748653222541,40.36,155.83,155.79,41.11214574]
[1748653222872,40.36,155.84,155.79,41.11214574]
[1748653223142,146.9,155.85,155.82,34.69347099]
[1748653223309,146.9,155.85,155.79,6.41867475]
[1748653223310,146.9,155.9,155.84,34.69347099]
[1748653223514,40.34,155.89,155.85,34.69347099]
[1748653224219,75.03347099,155.89,155.84,34.69347099]
[1748653224410,34.69347099,155.88,155.79,17.21867475]
[1748653224625,34.69347099,155.88,155.82,34.69347099]
[1748653225028,6.41519117,155.88,155.82,34.69347099]
[1748653225244,34.69347099,155.88,155.83,34.69347099]
[1748653225727,75.03347099,155.88,155.83,34.69347099]
[1748653225931,40.34,155.88,155.83,34.69347099]
[1748653226734,81.44880337,155.88,155.83,34.69347099]
[1748653226943,75.03347099,155.88,155.83,34.69347099]
[1748653227133,75.03347099,155.88,155.82,34.69347099]
[1748653227134,81.44881328,155.88,155.82,34.69347099]
[1748653227513,34.69347099,155.87,155.82,34.69347099]
[1748653227821,53.34311985,155.83,155.76,34.69347099]
[1748653228019,34.69347099,155.81,155.75,6.3661]
[1748653228240,40.34,155.82,155.75,6.3661]
[1748653228436,40.34,155.82,155.8,34.69347099]
[1748653228954,146.9,155.84,155.8,34.69347099]
[1748653228955,187.24,155.84,155.8,34.69347099]
[1748653229148,146.9,155.84,155.83,34.69347099]
[1748653229334,187.24,155.88,155.83,34.69347099]
[1748653229531,146.9,155.88,155.82,1.5768]
[1748653229733,146.9,155.88,155.85,34.69347099]
[1748653230057,146.9,155.88,155.82,1.5768]
[1748653230257,34.69347099,155.87,155.82,34.69347099]
[1748653230547,34.69347099,155.85,155.79,10.8]
[1748653230735,34.69347099,155.82,155.77,34.69347099]
[1748653230942,46.75683778,155.84,155.76,34.69347099]
[1748653230943,34.69347099,155.81,155.76,34.69347099]
[1748653231455,40.36,155.8,155.76,34.69347099]
[1748653232044,40.36,155.8,155.76,41.11348326]
[1748653232342,40.36,155.8,155.75,34.69347099]
[1748653232554,40.36,155.8,155.73,1.5768]
[1748653232724,40.36,155.8,155.76,34.69347099]
[1748653233348,40.36,155.8,155.77,34.69347099]
[1748653233550,40.36,155.8,155.79,34.69347099]
[1748653233735,187.24,155.83,155.79,34.69347099]
[1748653233930,146.9,155.83,155.8,34.69347099]
[1748653234123,40.34,155.85,155.81,34.69347099]
[1748653234741,34.69347099,155.84,155.77,10.8]
[1748653235050,34.69347099,155.81,155.76,34.69347099]
[1748653235253,75.03347099,155.81,155.76,34.69347099]
[1748653235963,75.03347099,155.81,155.74,6.420958]
[1748653235964,40.34,155.81,155.77,34.69347099]
[1748653237020,46.75813846,155.81,155.73,1.5768]
[1748653237330,46.75813846,155.81,155.71,6.9257468]
[1748653237331,34.69347099,155.76,155.71,0.8930468]
[1748653237547,34.69347099,155.74,155.71,0.8930468]
[1748653237901,34.69347099,155.73,155.71,0.8930468]
[1748653238151,34.69347099,155.72,155.71,0.8930468]
[1748653238450,53.34311985,155.72,155.71,0.8930468]
[1748653238656,53.48528142,155.72,155.71,0.8930468]
[1748653239022,59.9070641,155.72,155.71,0.8930468]
[1748653239629,86.04922567,155.72,155.71,0.8930468]
[1748653239829,60.04922567,155.72,155.71,0.8930468]
[1748653240039,63.90507338,155.72,155.71,0.8930468]
[1748653240222,63.90502585,155.72,155.71,0.8930468]
[1748653240419,18.64964886,155.68,155.61,1.00368898]
[1748653240660,34.69347099,155.63,155.61,1.00368898]
[1748653240951,75.05347099,155.62,155.61,1.00368898]
[1748653242432,100.12902911,155.62,155.55,41.12196278]
[1748653242748,100.12902911,155.62,155.54,7.97483583]
[1748653242749,34.69347099,155.6,155.54,7.97483583]
[1748653242943,34.69347099,155.58,155.53,34.69347099]
[1748653243144,75.05347099,155.58,155.53,34.69347099]
[1748653243446,75.05347099,155.58,155.51,6.43040274]
[1748653243447,34.69347099,155.57,155.51,6.43040274]
[1748653243642,34.69347099,155.56,155.51,34.69347099]
[1748653243955,187.26,155.58,155.54,34.69347099]
[1748653244131,18.64964886,155.56,155.5,6.43078849]
[1748653244334,34.69347099,155.55,155.49,34.69347099]
[1748653244530,75.05347099,155.54,155.49,34.69347099]
[1748653245850,200.24311985,155.53,155.47,6.43207724]
[1748653246162,181.59347099,155.52,155.46,34.69347099]
[1748653246537,18.64964886,155.46,155.4,7.32799615]
[1748653246746,34.69347099,155.48,155.43,34.69347099]
[1748653246936,40.38,155.45,155.43,34.69347099]
[1748653247142,40.38,155.45,155.43,41.12717041]
[1748653247366,0.14216157,155.54,155.44,34.69347099]
[1748653247547,34.69347099,155.53,155.48,34.69347099]
[1748653247742,45.49347099,155.54,155.49,34.69347099]
[1748653247937,45.49347099,155.54,155.43,48.66027197]
[1748653248145,34.69347099,155.51,155.45,34.69347099]
[1748653248434,45.49347099,155.54,155.49,34.69347099]
[1748653248971,34.69347099,155.53,155.47,34.69347099]
[1748653249191,34.69347099,155.53,155.48,6.43169539]
[1748653249359,34.69347099,155.53,155.48,41.12516638]
[1748653249685,10.8,155.54,155.48,34.69347099]
[1748653249848,45.49347099,155.54,155.48,34.69347099]
[1748653250050,10.8,155.54,155.5,34.69347099]
[1748653250245,10.8,155.6,155.53,34.69347099]
[1748653250455,10.8,155.6,155.49,1.5947]
[1748653250456,45.49347099,155.6,155.54,34.69347099]
[1748653250767,34.69347099,155.59,155.54,34.69347099]
[1748653250975,10.8,155.6,155.55,34.69347099]
[1748653251288,143.76,155.66,155.59,34.69347099]
[1748653251453,143.76,155.66,155.62,34.69347099]
[1748653251652,34.69347099,155.65,155.6,34.69347099]
[1748653251875,143.76,155.66,155.61,34.69347099]
[1748653252171,32.6271,155.69,155.57,6.42797454]
[1748653252172,34.69347099,155.69,155.58,0.14216157]
[1748653252353,40.44,155.69,155.64,34.69347099]
[1748653252554,40.44,155.69,155.65,34.69347099]
[1748653252859,45.49347099,155.7,155.65,34.69347099]
[1748653253061,45.49347099,155.7,155.66,34.69347099]
[1748653253062,10.8,155.7,155.66,34.69347099]
[1748653253264,45.49347099,155.7,155.65,34.69347099]
[1748653253671,10.8,155.7,155.66,34.69347099]
[1748653253856,10.8,155.7,155.65,34.69347099]
[1748653254058,10.8,155.7,155.64,51.9666459]
[1748653254059,51.9666459,155.69,155.64,51.9666459]
[1748653254260,62.7666459,155.7,155.65,51.9666459]
[1748653254471,10.8,155.7,155.66,51.9666459]
[1748653255374,51.9666459,155.71,155.66,51.9666459]
[1748653255668,51.9666459,155.72,155.67,51.9666459]
[1748653256045,10.84,155.74,155.66,6.42420654]
[1748653256388,6.4176614,155.82,155.73,51.9666459]
[1748653256553,46.9176614,155.82,155.76,51.9666459]
[1748653256756,51.9666459,155.81,155.76,51.9666459]
[1748653256957,51.9666459,155.78,155.69,66.5]
[1748653257251,58.38557385,155.79,155.74,51.9666459]
[1748653257562,70.61629476,155.77,155.66,51.36]
[1748653257767,40.52,155.76,155.72,51.9666459]
[1748653258168,92.4866459,155.76,155.67,32.42384531]
[1748653258366,51.9666459,155.73,155.66,6.42420083]
[1748653258573,51.9666459,155.73,155.68,51.9666459]
[1748653258886,51.9666459,155.74,155.68,51.9666459]
[1748653259055,51.9666459,155.74,155.69,51.9666459]
[1748653259456,6.42057357,155.75,155.64,10.84]
[1748653259457,6.42057357,155.75,155.7,51.9666459]
[1748653259753,51.9666459,155.73,155.64,17.26471802]
[1748653260084,40.58,155.72,155.64,17.26471802]
[1748653260405,40.58,155.72,155.7,51.9666459]
[1748653260556,40.58,155.72,155.64,17.26471802]
[1748653260557,40.58,155.72,155.69,51.9666459]
[1748653260755,51.9666459,155.71,155.66,51.9666459]
[1748653260987,51.9666459,155.7,155.65,51.9666459]
[1748653261169,58.38990339,155.69,155.64,51.9666459]
[1748653261359,40.6,155.68,155.64,51.9666459]
[1748653261558,40.6,155.68,155.65,51.9666459]
[1748653261785,40.6,155.68,155.64,51.9666459]
[1748653262280,40.6,155.68,155.63,51.9666459]
[1748653262581,40.6,155.68,155.6,12.4232]
[1748653262582,51.9666459,155.67,155.6,12.4232]
[1748653262899,51.9666459,155.64,155.58,51.9666459]
[1748653263089,51.9666459,155.61,155.54,1.5832]
[1748653263290,92.5666459,155.6,155.55,51.9666459]
[1748653263493,92.5666459,155.6,155.54,59.97903075]
[1748653263494,40.6,155.6,155.54,59.97903075]
[1748653263789,198.8666459,155.65,155.59,51.9666459]
[1748653263989,40.62,155.66,155.63,51.9666459]
[1748653264199,40.62,155.67,155.57,37.12432314]
[1748653264395,92.5866459,155.67,155.57,36.84]
[1748653264697,51.9666459,155.65,155.6,51.9666459]
[1748653264879,40.62,155.67,155.62,51.9666459]
[1748653265195,40.62,155.67,155.64,58.39156087]
[1748653266060,40.62,155.67,155.64,6.42491497]
[1748653266263,40.62,155.67,155.64,58.39156087]
[1748653266884,40.66,155.68,155.63,51.9666459]
[1748653267196,51.9666459,155.65,155.59,51.9666459]
[1748653267389,92.6266459,155.64,155.59,51.9666459]
[1748653267778,40.66,155.64,155.59,58.39353515]
[1748653267976,40.66,155.64,155.61,51.9666459]
[1748653268177,40.66,155.65,155.63,51.9666459]
[1748653268567,40.66,155.65,155.62,51.9666459]
[1748653268898,40.66,155.65,155.59,22.49475993]
[1748653268899,40.66,155.68,155.64,51.9666459]
[1748653269065,40.66,155.68,155.65,51.9666459]
[1748653269271,40.66,155.68,155.64,51.9666459]
[1748653269468,146.9,155.69,155.66,51.9666459]
[1748653269667,146.9,155.69,155.68,51.9666459]
[1748653269867,198.8666459,155.76,155.68,51.9666459]
[1748653270108,198.8666459,155.76,155.71,51.9666459]
[1748653270300,40.7,155.75,155.72,51.9666459]
[1748653270793,51.9666459,155.74,155.65,6.6147]
[1748653270967,51.9666459,155.72,155.67,51.9666459]
[1748653271173,40.7,155.71,155.66,51.9666459]
[1748653271384,92.6666459,155.71,155.66,51.9666459]
[1748653271586,92.6666459,155.71,155.65,58.39092412]
[1748653271587,51.9666459,155.7,155.65,58.39092412]
[1748653271974,51.9666459,155.68,155.62,6.42588402]
[1748653272180,51.9666459,155.68,155.59,109.9547]
[1748653272181,51.9666459,155.66,155.59,10.84]
[1748653272379,92.6866459,155.65,155.6,51.9666459]
[1748653272578,40.72,155.64,155.6,51.9666459]
[1748653272790,51.9666459,155.62,155.57,58.39462044]
[1748653273004,40.72,155.64,155.55,58.39532238]
[1748653273005,92.6866459,155.61,155.55,58.39532238]
[1748653273179,51.9666459,155.6,155.55,51.9666459]
[1748653273382,92.6866459,155.61,155.55,58.39533594]
[1748653273797,51.9666459,155.6,155.55,51.9666459]
[1748653274773,92.6866459,155.61,155.56,51.9666459]
[1748653274997,40.72,155.61,155.57,51.9666459]
[1748653275204,40.72,155.61,155.56,51.9666459]
[1748653277007,40.72,155.61,155.56,58.39488215]
[1748653277674,40.72,155.61,155.57,51.9666459]
[1748653277875,146.9,155.66,155.6,51.9666459]
[1748653278100,6.07,155.71,155.64,51.9666459]
[1748653278101,40.72,155.67,155.64,51.9666459]
[1748653278611,92.6866459,155.67,155.61,51.9666459]
[1748653278785,6.42425799,155.66,155.61,51.9666459]
[1748653279101,40.72,155.67,155.64,51.9666459]
[1748653279802,146.9,155.69,155.65,51.9666459]
[1748653279986,10.84,155.72,155.68,51.9666459]
[1748653280185,146.9,155.76,155.7,51.9666459]
[1748653280507,40.72,155.75,155.72,51.9666459]
[1748653280703,40.72,155.75,155.72,58.388094]
[1748653280911,146.9,155.76,155.72,58.388094]
[1748653281214,40.72,155.74,155.72,51.9666459]
[1748653281386,146.9,155.76,155.73,51.9666459]
[1748653281583,187.62,155.76,155.75,51.9666459]
[1748653281816,146.9,155.76,155.75,51.9666459]
[1748653282492,10.84,155.82,155.75,51.9666459]
[1748653282493,40.72,155.78,155.75,51.9666459]
[1748653282705,40.72,155.78,155.77,51.9666459]
[1748653283310,40.72,155.78,155.72,17.26169881]
[1748653283523,40.72,155.78,155.75,51.9666459]
[1748653283689,40.72,155.78,155.77,51.9666459]
[1748653284087,40.72,155.78,155.76,51.9666459]
[1748653284288,40.72,155.78,155.75,51.9666459]
[1748653284805,40.72,155.78,155.75,58.38689324]
[1748653285014,146.9,155.81,155.77,51.9666459]
[1748653285186,18.64964886,155.85,155.8,51.9666459]
[1748653285511,40.72,155.84,155.81,51.9666459]
[1748653285715,40.72,155.83,155.81,51.9666459]
[1748653286082,40.72,155.83,155.75,22.4716117]
[1748653286083,51.9666459,155.82,155.75,51.9666459]
[1748653286282,51.9666459,155.79,155.72,17.26178267]
[1748653286484,92.7066459,155.78,155.73,51.9666459]
[1748653286785,92.7066459,155.78,155.72,17.26178267]
[1748653286786,40.74,155.77,155.74,51.9666459]
[1748653286988,40.74,155.77,155.75,51.9666459]
[1748653287496,40.74,155.77,155.74,51.9666459]
[1748653288291,40.74,155.77,155.76,51.9666459]
[1748653288684,40.74,155.77,155.74,51.9666459]
[1748653289383,40.74,155.77,155.76,51.9666459]
[1748653290194,40.74,155.77,155.75,51.9666459]
[1748653290713,40.74,155.77,155.65,6.42467073]
[1748653290714,51.9666459,155.76,155.65,6.42467073]
[1748653290935,51.74,155.75,155.65,6.42467073]
[1748653291096,51.74,155.75,155.69,51.9666459]
[1748653291421,51.74,155.75,155.72,51.9666459]
[1748653291603,51.74,155.75,155.69,6.42300926]
[1748653291816,110.12739376,155.75,155.7,51.9666459]
[1748653291996,110.12739376,155.75,155.71,51.9666459]
[1748653291997,51.74,155.75,155.71,51.9666459]
[1748653292328,51.74,155.75,155.7,51.9666459]
[1748653292530,51.9666459,155.74,155.65,22.48634756]
[1748653292831,51.74,155.75,155.7,51.9666459]
[1748653293113,58.16061755,155.75,155.7,51.9666459]
[1748653293309,110.12726345,155.75,155.7,51.9666459]
[1748653293626,11.0,155.75,155.71,51.9666459]
[1748653293830,40.74,155.74,155.7,51.9666459]
[1748653294122,51.9666459,155.73,155.68,51.9666459]
[1748653294699,51.9666459,155.72,155.66,51.9666459]
[1748653294912,92.7266459,155.71,155.65,51.9666459]
[1748653295133,51.9666459,155.69,155.64,51.9666459]
[1748653295424,51.9666459,155.67,155.61,51.9666459]
[1748653295602,55.85687355,155.66,155.61,51.9666459]
[1748653295809,51.9666459,155.63,155.58,62.9666459]
[1748653296005,40.76,155.62,155.58,51.9666459]
[1748653296607,40.76,155.62,155.56,6.42838776]
[1748653296917,18.64964886,155.61,155.53,11.0]
[1748653297115,51.9666459,155.59,155.54,51.9666459]
[1748653297316,40.78,155.58,155.53,69.39611448]
[1748653297518,40.78,155.58,155.55,51.9666459]
[1748653297817,40.78,155.58,155.53,69.39612647]
[1748653298290,92.7466459,155.58,155.53,51.9666459]
[1748653298597,40.78,155.58,155.54,51.9666459]
[1748653299014,51.9666459,155.59,155.54,51.9666459]
[1748653299194,26.0,155.62,155.48,11.0]
[1748653299195,40.8,155.58,155.55,58.39544692]
[1748653299403,40.8,155.57,155.55,6.42880102]
[1748653300311,40.8,155.57,155.51,6.43045463]
[1748653300501,92.7666459,155.57,155.51,58.39710053]
[1748653300835,92.7666459,155.57,155.52,51.9666459]
[1748653301202,92.7666459,155.57,155.5,6.43079299]
[1748653301393,47.22805323,155.57,155.5,51.9666459]
[1748653301716,51.9666459,155.55,155.5,51.9666459]
[1748653301912,40.8,155.54,155.5,51.9666459]
[1748653302537,11.0,155.57,155.53,51.9666459]
[1748653302741,165.54964886,155.62,155.56,51.9666459]
[1748653302904,146.9,155.62,155.6,51.9666459]
[1748653303102,11.0,155.64,155.61,51.9666459]
[1748653303313,51.9666459,155.68,155.63,51.9666459]
[1748653303624,51.9666459,155.66,155.6,6.42634945]
[1748653303832,92.7866459,155.67,155.62,51.9666459]
[1748653304004,96.61629476,155.63,155.54,11.0]
[1748653304333,92.8066459,155.62,155.56,51.9666459]
[1748653304519,40.84,155.61,155.57,51.9666459]
[1748653304725,92.8066459,155.61,155.55,51.9666459]
[1748653304926,40.84,155.61,155.57,51.9666459]
[1748653305299,40.84,155.61,155.57,58.39430938]
[1748653305505,146.9,155.66,155.6,51.9666459]
[1748653305725,40.84,155.65,155.61,51.9666459]
[1748653306037,92.8066459,155.65,155.6,51.9666459]
[1748653306332,51.9666459,155.63,155.55,6.42880102]
[1748653306505,40.88,155.62,155.58,51.9666459]
[1748653307032,40.88,155.62,155.6,51.9666459]
[1748653307217,40.88,155.62,155.58,51.9666459]
[1748653307536,92.8466459,155.62,155.57,51.9666459]
[1748653307906,99.27261438,155.62,155.57,51.9666459]
[1748653308332,40.88,155.62,155.57,51.9666459]
[1748653308532,146.9,155.61,155.57,51.9666459]
[1748653308738,146.9,155.61,155.54,17.42880191]
[1748653308739,198.8666459,155.61,155.54,17.42880191]
[1748653308918,146.9,155.61,155.56,51.9666459]
[1748653309124,198.8666459,155.61,155.56,51.9666459]
[1748653309328,146.9,155.6,155.58,51.9666459]
[1748653309530,146.9,155.66,155.59,51.9666459]
[1748653309714,146.9,155.73,155.65,51.9666459]
[1748653310038,44.77966459,155.72,155.68,51.9666459]
[1748653310337,51.9666459,155.7,155.65,51.9666459]
[1748653310639,40.92,155.69,155.66,51.9666459]
[1748653310843,92.8866459,155.69,155.59,11.0]
[1748653311017,51.9666459,155.68,155.63,51.9666459]
[1748653311437,99.31003883,155.69,155.64,51.9666459]
[1748653311641,51.9666459,155.68,155.63,51.9666459]
[1748653311812,51.9666459,155.68,155.59,17.42710644]
[1748653312012,47.34339293,155.69,155.63,51.9666459]
[1748653312313,99.31003883,155.69,155.64,51.9666459]
[1748653312533,47.34339293,155.69,155.65,51.9666459]
[1748653312974,99.31003883,155.69,155.64,51.9666459]
[1748653313134,99.31003883,155.69,155.59,33.49497712]
[1748653313135,146.9,155.73,155.68,51.9666459]
[1748653313322,6.42260757,155.7,155.66,51.9666459]
[1748653313638,146.9,155.73,155.67,51.9666459]
[1748653313941,40.94,155.72,155.68,51.9666459]
[1748653314119,92.9066459,155.72,155.67,51.9666459]
[1748653314815,40.94,155.72,155.62,6.42590926]
[1748653315023,51.9666459,155.69,155.64,51.9666459]
[1748653315237,40.92,155.68,155.65,51.9666459]
[1748653315442,40.92,155.68,155.67,51.9666459]
[1748653315661,40.94,155.72,155.67,51.9666459]
[1748653315816,172.11904886,155.78,155.71,51.9666459]
[1748653315817,153.4694,155.78,155.71,51.9666459]
[1748653316014,40.94,155.77,155.74,42.09847244]
[1748653316262,40.94,155.76,155.74,42.09847244]
[1748653316431,40.94,155.76,155.73,42.09847244]
[1748653316845,40.94,155.75,155.72,42.09847244]
[1748653317029,40.94,155.75,155.73,42.09847244]
[1748653317560,146.9,155.78,155.73,48.51983323]
[1748653317761,40.94,155.77,155.75,42.09847244]
[1748653317980,42.09847244,155.76,155.68,8.1229]
[1748653318147,42.09847244,155.74,155.69,42.09847244]
[1748653318462,42.09847244,155.72,155.65,11.12]
[1748653318666,40.94,155.71,155.67,42.09847244]
[1748653318829,40.94,155.71,155.65,11.12]
[1748653319163,40.94,155.71,155.67,42.09847244]
[1748653319874,40.94,155.71,155.68,42.09847244]
[1748653320166,40.94,155.71,155.65,11.12]
[1748653320388,42.09847244,155.69,155.64,42.09847244]
[1748653320683,40.92,155.68,155.64,42.09847244]
[1748653320839,40.92,155.68,155.59,6.2127]
[1748653321043,42.09847244,155.66,155.6,42.09847244]
[1748653321259,83.03847244,155.65,155.6,42.09847244]
[1748653321439,83.03847244,155.65,155.59,42.09847244]
[1748653321629,83.03847244,155.65,155.6,42.09847244]
[1748653322069,89.46314446,155.65,155.6,42.09847244]
[1748653322368,146.9,155.68,155.64,42.09847244]
[1748653322544,164.4409664,155.74,155.67,42.09847244]
[1748653322733,40.96,155.73,155.7,42.09847244]
[1748653323056,42.09847244,155.72,155.64,12.6757]
[1748653323245,42.09847244,155.71,155.66,42.09847244]
[1748653323447,42.09847244,155.71,155.64,11.12]
[1748653323448,42.09847244,155.68,155.64,11.12]
[1748653323636,83.07847244,155.7,155.65,42.09847244]
[1748653323837,42.09847244,155.69,155.64,11.12]
[1748653324060,89.5014439,155.7,155.64,53.21847244]
[1748653324272,89.5014439,155.7,155.63,42.09847244]
[1748653324273,42.09847244,155.69,155.63,42.09847244]
[1748653324847,60.7481213,155.68,155.59,12.6757]
[1748653325049,60.7481213,155.68,155.59,42.09847244]
[1748653325050,42.09847244,155.64,155.59,42.09847244]
[1748653325269,41.0,155.63,155.59,42.09847244]
[1748653325468,41.0,155.63,155.6,42.09847244]
[1748653325654,11.12,155.68,155.54,54.84227244]
[1748653325655,53.21847244,155.68,155.62,42.09847244]
[1748653325845,41.0,155.65,155.64,42.09847244]
[1748653326050,41.0,155.65,155.63,42.09847244]
[1748653326255,41.0,155.65,155.64,42.09847244]
[1748653326468,41.0,155.69,155.64,42.09847244]
[1748653326679,41.0,155.69,155.62,6.42583304]
[1748653326849,41.0,155.69,155.66,42.09847244]
[1748653327047,42.09847244,155.68,155.6,11.12]
[1748653327247,42.09847244,155.66,155.61,42.09847244]
[1748653327559,41.02,155.65,155.61,42.09847244]
[1748653327758,47.44478149,155.65,155.61,42.09847244]
[1748653328015,41.02,155.65,155.61,42.09847244]
[1748653328278,42.09847244,155.64,155.59,42.09847244]
[1748653328479,41.02,155.65,155.61,42.09847244]
[1748653328874,41.06,155.65,155.61,42.09847244]
[1748653329379,83.15847244,155.65,155.59,42.09847244]
[1748653329578,83.15847244,155.65,155.54,85.79471986]
[1748653329579,42.09847244,155.6,155.54,8.05290777]
[1748653329779,42.09847244,155.58,155.53,42.09847244]
[1748653329982,41.14,155.57,155.53,42.09847244]
[1748653330377,42.09847244,155.56,155.45,35.03422478]
[1748653330563,42.09847244,155.55,155.5,42.09847244]
[1748653330955,41.14,155.57,155.53,42.09847244]
[1748653331282,83.23847244,155.57,155.52,42.09847244]
[1748653331493,83.23847244,155.57,155.46,6.43252283]
[1748653331494,42.09847244,155.53,155.46,6.43252283]
[1748653331673,83.23847244,155.52,155.46,42.09847244]
[1748653331874,41.14,155.51,155.46,48.53088576]
[1748653332076,41.14,155.51,155.49,42.09847244]
[1748653332284,41.14,155.51,155.48,42.09847244]
[1748653334183,146.9,155.59,155.5,42.09847244]
[1748653334508,146.9,155.59,155.56,42.09847244]
[1748653334719,83.23847244,155.59,155.54,42.09847244]
[1748653334872,41.14,155.59,155.55,42.09847244]
[1748653335194,42.09847244,155.61,155.56,42.09847244]
[1748653335375,41.16,155.6,155.51,11.12]
[1748653335582,41.16,155.59,155.55,42.09847244]
[1748653335889,42.09847244,155.56,155.51,11.12]
[1748653336090,83.25847244,155.59,155.54,42.09847244]
[1748653336294,41.16,155.59,155.55,42.09847244]
[1748653336672,146.9,155.6,155.56,42.09847244]
[1748653336873,146.9,155.6,155.55,42.09847244]
[1748653336874,83.27847244,155.6,155.55,42.09847244]
[1748653337072,42.09847244,155.59,155.52,6.42991479]
[1748653337279,42.09847244,155.58,155.52,42.09847244]
[1748653337594,42.09847244,155.59,155.54,42.09847244]
[1748653337968,42.09847244,155.56,155.51,11.12]
[1748653338172,32.42714827,155.59,155.49,48.52941102]
[1748653338173,42.09847244,155.54,155.49,48.52941102]
[1748653338395,42.09847244,155.54,155.49,42.09847244]
[1748653338984,42.09847244,155.54,155.49,48.52970595]
[1748653339185,42.09847244,155.54,155.48,6.43160858]
[1748653339387,42.09847244,155.53,155.48,42.09847244]
[1748653339593,41.22,155.54,155.51,42.09847244]
[1748653339790,83.31847244,155.54,155.48,42.09847244]
[1748653339980,42.09847244,155.53,155.48,42.09847244]
[1748653340596,83.31847244,155.54,155.49,42.09847244]
[1748653340998,89.74786242,155.54,155.49,42.09847244]
[1748653341187,41.22,155.54,155.5,42.09847244]
[1748653341503,89.7477455,155.54,155.49,42.09847244]
[1748653341879,89.7477455,155.54,155.48,42.09847244]
[1748653342204,158.02,155.58,155.53,42.09847244]
[1748653342504,41.2,155.57,155.56,42.09847244]
[1748653342819,146.9,155.58,155.55,42.09847244]
[1748653343117,188.12,155.58,155.55,42.09847244]
[1748653343286,188.12,155.58,155.56,42.09847244]
[1748653343485,146.9,155.58,155.55,42.09847244]
[1748653343695,188.12,155.58,155.55,42.09847244]
[1748653343902,48.52539208,155.6,155.49,22.50948613]
[1748653343903,146.9,155.62,155.57,42.09847244]
[1748653344092,42.09847244,155.61,155.56,42.09847244]
[1748653344299,42.09847244,155.59,155.54,42.09847244]
[1748653344478,42.09847244,155.55,155.45,19.3724]
[1748653344683,83.31847244,155.54,155.49,42.09847244]
[1748653345219,42.09847244,155.52,155.46,42.09847244]
[1748653345381,42.09847244,155.51,155.46,42.09847244]
[1748653345587,41.22,155.5,155.45,42.09847244]
[1748653345787,41.22,155.5,155.42,92.5]
[1748653345788,83.31847244,155.5,155.43,6.43376439]
[1748653346007,83.31847244,155.5,155.45,42.09847244]
[1748653346180,83.31847244,155.5,155.46,42.09847244]
[1748653346181,41.22,155.5,155.46,42.09847244]
[1748653346383,41.22,155.5,155.48,42.09847244]
[1748653346602,41.22,155.5,155.47,42.09847244]
[1748653347208,41.22,155.5,155.48,42.09847244]
[1748653347503,41.22,155.5,155.47,42.09847244]
[1748653347708,41.22,155.5,155.45,6.43292127]
[1748653347883,42.09847244,155.48,155.41,6.4486]
[1748653348080,188.99847244,155.49,155.44,6.43335048]
[1748653348301,146.9,155.49,155.45,42.09847244]
[1748653348508,146.9,155.49,155.44,48.53182292]
[1748653348712,42.09847244,155.48,155.43,42.09847244]
[1748653349008,146.9,155.49,155.45,42.09847244]
[1748653349212,188.99847244,155.49,155.44,42.09847244]
[1748653349389,41.26,155.48,155.44,42.09847244]
[1748653350383,42.09847244,155.47,155.4,0.8930468]
[1748653350585,42.09847244,155.47,155.42,42.09847244]
[1748653350801,42.09847244,155.46,155.41,42.09847244]
[1748653351400,47.69176017,155.48,155.4,7.32768731]
[1748653351401,42.09847244,155.45,155.4,42.99151924]
[1748653351723,42.09847244,155.41,155.4,0.8930468]
[1748653351881,86.7481213,155.41,155.4,0.8930468]
[1748653352089,87.03244444,155.41,155.4,0.8930468]
[1748653352395,93.4670368,155.41,155.4,0.8930468]
[1748653352694,60.7481213,155.41,155.4,0.8930468]
[1748653352911,42.09847244,155.41,155.4,0.8930468]
[1748653353093,41.28,155.41,155.4,0.8930468]
[1748653353287,42.09847244,155.44,155.4,0.8930468]
[1748653353495,41.28,155.43,155.4,0.8930468]
[1748653353787,83.37847244,155.43,155.4,0.8930468]
[1748653354207,42.09847244,155.42,155.4,0.8930468]
[1748653354406,83.37847244,155.43,155.4,0.8930468]
[1748653354610,60.7481213,155.41,155.4,0.8930468]
[1748653355022,42.09847244,155.42,155.4,0.8930468]
[1748653355438,86.7481213,155.41,155.4,0.8930468]
[1748653355599,87.03244444,155.41,155.4,0.8930468]